[Event "40th Eastman Open Ghent"]
[Site "Ghent"]
[Date "2017.07.18"]
[Round "7"]
[White "De Jong, Tom"]
[Black "Hamblok, Roel"]
[Result "1-0"]
[ECO "B22"]
[WhiteElo "2258"]
[BlackElo "2305"]
[Annotator "NA"]
[PlyCount "69"]
[EventDate "2017.??.??"]
[EventType "swiss"]
[EventCountry "BEL"]
[SourceTitle "playchess.com"]
[Source "ChessBase"]
[SourceQuality "1"]
[TimeControl "7200"]

1. e4 {[%emt 0:01:36]} c5 {[%emt 0:00:06]} 2. c3 {[%emt 0:00:09]} d6 {[%emt 0:00:05]} 3. d4 {[%emt 0:00:12]} Nf6 {[%emt 0:00:06]} 4. Bd3 {[%emt 0:01:17]} g6 {[%emt 0:00:07]} 5. Ne2 {[%emt 0:04:20]} Bg7 {[%emt 0:01:15]} 6. O-O {[%emt 0:00:44]} O-O {[%emt 0:00:18]} 7. b4 {[%emt 0:09:52] B07: Pirc Defence: Miscellaneous Systems} (7. h3 $142 Nc6 8. Be3 cxd4 9. cxd4 Nb4 10. Nbc3 Nxd3 11. Qxd3 b6 12. d5 e5 13. dxe6 fxe6 14. Rfd1 Bb7 15. Qxd6 Qxd6 16. Rxd6 Nxe4 17. Rxe6 Nxc3 18. Nxc3 {½-½ (52) Nepomniachtchi,I (2632)-Smirin,I (2650) Netanya 2009}) 7... cxb4 {[%emt 0:13:27]} 8. cxb4 {[%emt 0:00:06]} Nc6 $146 {[%emt 0:00:19]} ({Predecessor:} 8... Bg4 9. f3 Bd7 10. Be3 Qb6 11. Qd2 Bb5 12. Bxb5 Qxb5 13. a4 Qd7 {1-0 (46) Montero,W (2093)-Jolodovsky,A (2080) Buenos Aires 2002}) 9. a3 {[%emt 0:02:19]} Qb6 {[%emt 0:02:24]} 10. Bb2 {[%emt 0:04:39]} Ng4 {[%emt 0:12:11]} (10... a6 $11) 11. h3 {[%emt 0:05:40]} Nh6 {[%emt 0:05:48]} 12. Nd2 {[%emt 0:07:46]} Nxd4 {[%emt 0:02:52]} 13. Bxd4 {[%emt 0:08:44]} Bxd4 {[%emt 0:01:56]} 14. Nc4 {[%emt 0:00:10]} Bxf2+ {[%emt 0:00:51]} 15. Rxf2 {[%emt 0:00:07]} Qd8 {[%emt 0:00:10]} 16. Qd2 {[%emt 0:01:50]} Kg7 {[%emt 0:00:09]} 17. Nf4 {[%emt 0:04:43]} f6 {[%emt 0:03:15]} 18. Ne3 {[%emt 0:03:11]} Nf7 {[%emt 0:01:36]} 19. Bc4 $18 {[%emt 0:11:21]} Ng5 {[%emt 0:09:26]} 20. Qd3 {[%emt 0:05:24]} a5 {[%emt 0:01:01]} 21. b5 {[%emt 0:04:19]} Bd7 {[%emt 0:01:58]} 22. h4 {[%emt 0:05:01]} Nf7 {[%emt 0:00:18]} 23. Ne6+ {[%emt 0:02:30]} Bxe6 {[%emt 0:00:07]} 24. Bxe6 {[%emt 0:00:03]} Ne5 {[%emt 0:00:38]} 25. Qd4 {[%emt 0:02:34]} Nd7 {[%emt 0:06:17]} 26. Bxd7 {[%emt 0:00:22]} Qxd7 {[%emt 0:00:02]} 27. Nd5 {[%emt 0:00:25]} Qg4 {[%emt 0:00:22]} 28. h5 Rae8 {[%emt 0:01:29]} 29. Nc7 {[%emt 0:11:03]} Rc8 {[%emt 0:00:45]} 30. b6 {[%emt 0:00:15]} Kh8 {[%emt 0:02:33]} 31. hxg6 {[%emt 0:00:20]} hxg6 {[%emt 0:00:06]} 32. Qd5 {[%emt 0:01:40]} Rb8 {[%emt 0:00:53]} 33. Rf3 {[%emt 0:00:44]} Rg8 {[%emt 0:01:17]} 34. Rh3+ {[%emt 0:01:54]} Kg7 {[%emt 0:00:07]} 35. Ne6+ {[%emt 0:00:17]} 1-0

[Event "40th Eastman Open Ghent"]
[Site "Ghent"]
[Date "2017.07.18"]
[Round "7"]
[White "Sadkowski, Daniel"]
[Black "van der Valk, Niklas"]
[Result "1-0"]
[ECO "A40"]
[WhiteElo "2243"]
[BlackElo "2172"]
[Annotator "NA"]
[PlyCount "137"]
[EventDate "2017.??.??"]
[EventType "swiss"]
[EventCountry "BEL"]
[SourceTitle "playchess.com"]
[Source "ChessBase"]
[SourceQuality "1"]
[TimeControl "7200"]

1. d4 {[%emt 0:00:03]} Nf6 {[%emt 0:00:09]} 2. c4 {[%emt 0:00:06]} e6 {[%emt 0:00:04]} 3. g3 {[%emt 0:00:07]} Bb4+ {[%emt 0:01:37]} 4. Bd2 {[%emt 0:00:09]} a5 {[%emt 0:00:40]} 5. Bg2 {[%emt 0:00:38]} Nc6 {[%emt 0:04:22]} 6. Nf3 {[%emt 0:02:48]} d5 {[%emt 0:06:20]} 7. O-O {[%emt 0:10:28]} O-O {[%emt 0:01:06] LiveBook: 19 Games} 8. Qc2 {[%emt 0:04:05]} Bd7 {[%emt 0:13:37]} 9. Bf4 {[%emt 0:06:29]} dxc4 {[%emt 0:10:06]} 10. Qxc4 {[%emt 0:00:19]} Nd5 {[%emt 0:03:12]} 11. Bg5 {[%emt 0:03:55]} f6 {[%emt 0:05:01]} 12. Bd2 {[%emt 0:05:26]} Na7 {[%emt 0:09:47]} (12... Nb6 $11 13. Qb3 a4) 13. Re1 {[%emt 0:06:02]} Qe7 {[%emt 0:13:03]} 14. a3 $16 {[%emt 0:05:30]} Bxd2 {[%emt 0:05:08]} 15. Nbxd2 {[%emt 0:00:10]} Bb5 {[%emt 0:02:16]} 16. Qc2 {[%emt 0:00:16]} Nb6 {[%emt 0:03:23]} 17. Rac1 {[%emt 0:02:06]} c6 {[%emt 0:03:52]} 18. Ne4 {[%emt 0:15:41]} Nd7 {[%emt 0:04:56]} 19. Qd2 {[%emt 0:00:25]} b6 {[%emt 0:01:16]} 20. Qf4 {[%emt 0:01:01]} Ba6 {[%emt 0:02:41]} 21. Qd6 {[%emt 0:04:12]} Qxd6 {[%emt 0:05:24]} 22. Nxd6 {[%emt 0:00:05]} Nc8 {[%emt 0:03:16]} 23. Nxc8 {[%emt 0:13:19]} Raxc8 {[%emt 0:00:33]} 24. Bh3 {[%emt 0:00:09]} Rfe8 {[%emt 0:05:04]} 25. b4 {[%emt 0:03:59]} axb4 {[%emt 0:00:28]} 26. axb4 {[%emt 0:00:05]} b5 {[%emt 0:03:34]} 27. Nd2 {[%emt 0:02:38]} Nb6 {[%emt 0:00:38]} 28. Ne4 {[%emt 0:00:08]} Rc7 {[%emt 0:01:30]} 29. Ra1 {[%emt 0:08:12]} Bc8 {[%emt 0:01:32]} 30. Nd6 {[%emt 0:00:12]} Ree7 {[%emt 0:00:05]} 31. Rec1 {[%emt 0:01:54]} f5 {[%emt 0:00:40]} 32. Bg2 {[%emt 0:00:37]} Red7 {[%emt 0:00:36]} 33. Nxc8 {[%emt 0:00:25]} Nxc8 {[%emt 0:01:05]} 34. Rxc6 {[%emt 0:03:23]} Rxc6 {[%emt 0:00:11]} 35. Bxc6 {[%emt 0:00:04]} Rc7 {[%emt 0:00:33]} 36. Bxb5 {[%emt 0:00:41]} Nb6 {[%emt 0:00:05]} 37. Bd3 {[%emt 0:01:27]} Rb7 {[%emt 0:00:15]} 38. b5 {[%emt 0:02:02]} Nd5 {[%emt 0:00:11]} 39. f3 {[%emt 0:03:35]} Nb6 {[%emt 0:00:20]} 40. Rc1 {[%emt 0:00:41]} Kf7 {[%emt 0:00:03]} 41. Kf2 Kf6 42. Rc6 {[%emt 0:00:22]} Nd5 {[%emt 0:00:09]} 43. Bc4 {[%emt 0:00:32]} Nc7 {[%emt 0:00:15]} 44. b6 {[%emt 0:00:11]} Na8 {[%emt 0:00:06]} 45. Rxe6+ {[%emt 0:00:21]} Kg5 {[%emt 0:00:05]} 46. f4+ Kg4 {[%emt 0:00:02]} 47. Bb3 {[%emt 0:03:46]} Rxb6 48. Rxb6 Nxb6 49. d5 {[%emt 0:00:06]} Nd7 {[%emt 0:00:02]} 50. Kg2 {[%emt 0:00:09]} Nc5 {[%emt 0:00:00]} 51. Bc2 {[%emt 0:00:01]} Kh5 {[%emt 0:00:01]} 52. h3 {[%emt 0:00:04]} Kg6 {[%emt 0:00:02]} 53. Kf3 {[%emt 0:00:01]} Kf6 {[%emt 0:00:00]} 54. Ke3 {[%emt 0:00:01]} Ke7 {[%emt 0:00:01]} 55. Kd4 {[%emt 0:00:01]} Nd7 56. Bxf5 {[%emt 0:00:03]} Nf8 {[%emt 0:00:03]} 57. e4 {[%emt 0:00:01]} g6 {[%emt 0:00:01]} 58. Bc8 {[%emt 0:00:02]} Kd8 {[%emt 0:00:00]} 59. Ba6 {[%emt 0:00:01]} Nd7 {[%emt 0:00:02]} 60. e5 {[%emt 0:00:01]} Nb8 {[%emt 0:00:00]} 61. Bb5 Ke7 62. d6+ {[%emt 0:00:02]} Ke6 {[%emt 0:00:03]} 63. Bc4+ {[%emt 0:00:01]} Kd7 {[%emt 0:00:00]} 64. Kd5 {[%emt 0:00:02]} g5 {[%emt 0:00:06]} 65. e6+ {[%emt 0:00:00]} Kd8 {[%emt 0:00:01]} 66. e7+ {[%emt 0:00:02]} Ke8 {[%emt 0:00:01]} 67. Bb5+ Nd7 68. Ke6 {[%emt 0:00:02]} g4 {[%emt 0:00:04]} 69. Bxd7# 1-0

[Event "40th Eastman Open Ghent"]
[Site "Ghent"]
[Date "2017.07.18"]
[Round "7"]
[White "Lacrosse, Marc"]
[Black "Van Beers, Eddy"]
[Result "1/2-1/2"]
[ECO "A57"]
[WhiteElo "2185"]
[BlackElo "2312"]
[Annotator "NA"]
[PlyCount "72"]
[EventDate "2017.??.??"]
[EventType "swiss"]
[EventCountry "BEL"]
[SourceTitle "playchess.com"]
[Source "ChessBase"]
[SourceQuality "1"]
[TimeControl "7200"]

1. d4 {[%emt 0:03:20]} Nf6 {[%emt 0:00:10]} 2. c4 {[%emt 0:00:04]} c5 {[%emt 0:00:07]} 3. d5 {[%emt 0:00:46]} b5 {[%emt 0:00:26]} 4. cxb5 {[%emt 0:01:23]} a6 {[%emt 0:00:04]} 5. e3 {[%emt 0:00:49]} axb5 {[%emt 0:01:06]} 6. Bxb5 {[%emt 0:00:13]} Qa5+ {[%emt 0:00:35]} 7. Nc3 {[%emt 0:00:06]} Bb7 {[%emt 0:00:11]} 8. Bd2 {[%emt 0:01:11]} Qb6 {[%emt 0:06:32]} 9. Nf3 {[%emt 0:01:35]} Nxd5 {[%emt 0:02:34]} 10. a4 {[%emt 0:01:33]} e6 {[%emt 0:04:03]} 11. O-O {[%emt 0:02:12]} Be7 {[%emt 0:01:56]} 12. Nxd5 {[%emt 0:11:15]} (12. e4 $5 {[%cal Re4d5]} Nxc3 13. Bxc3 $14) 12... Bxd5 {[%emt 0:01:51]} 13. Bc3 {[%emt 0:05:15]} O-O {[%emt 0:14:48] LiveBook: 18 Games} 14. Ne5 {[%emt 0:15:56]} f6 {[%emt 0:12:08]} 15. Nc4 $11 {[%emt 0:16:27]} (15. e4 $5) 15... Qb7 {[%emt 0:15:47]} 16. Qg4 {[%emt 0:07:25]} Rf7 {[%emt 0:08:56]} 17. Rfd1 {[%emt 0:07:06]} f5 {[%emt 0:13:45]} 18. Qg3 {[%emt 0:02:17]} Bxc4 {[%emt 0:00:56]} 19. Bxc4 {[%emt 0:00:07]} d5 {[%emt 0:00:13]} 20. Qf3 {[%emt 0:07:07]} Qc6 {[%emt 0:16:16]} 21. Rxd5 {[%emt 0:07:53]} exd5 {[%emt 0:00:34]} 22. Bxd5 {[%emt 0:00:07]} Rxa4 {[%emt 0:00:12]} 23. Bxf7+ {[%emt 0:08:01]} Kxf7 {[%emt 0:00:44]} 24. Qxf5+ {[%emt 0:02:18]} Kg8 {[%emt 0:07:36]} 25. Rxa4 {[%emt 0:00:45]} Qxa4 {[%emt 0:00:06]} 26. Qe6+ {[%emt 0:00:31]} Kf8 {[%emt 0:00:18]} 27. Bxg7+ {[%emt 0:00:28]} Kxg7 {[%emt 0:00:33]} 28. Qxe7+ {[%emt 0:00:05]} Kg6 {[%emt 0:01:54]} 29. Qe6+ {[%emt 0:02:35]} Kg7 {[%emt 0:00:06]} 30. Qe5+ {[%emt 0:00:13]} Kg6 {[%emt 0:00:15]} 31. h4 {[%emt 0:00:50]} Qd1+ {[%emt 0:00:14]} 32. Kh2 {[%emt 0:00:07]} Nd7 {[%emt 0:00:02]} 33. Qe4+ {[%emt 0:01:32]} Kg7 {[%emt 0:00:06]} 34. Qe7+ {[%emt 0:01:15]} Kg6 {[%emt 0:00:02]} 35. Qe4+ {[%emt 0:00:46]} Kg7 {[%emt 0:00:02]} 36. Qe7+ {[%emt 0:01:15]} Kg6 {[%emt 0:00:02]} 1/2-1/2

[Event "40th Eastman Open Ghent"]
[Site "Ghent"]
[Date "2017.07.18"]
[Round "7"]
[White "Kitze, Alexander"]
[Black "Harakis, Alexis M"]
[Result "1/2-1/2"]
[ECO "A06"]
[WhiteElo "2177"]
[BlackElo "2284"]
[Annotator "NA"]
[PlyCount "97"]
[EventDate "2017.??.??"]
[EventType "swiss"]
[EventCountry "BEL"]
[SourceTitle "playchess.com"]
[Source "ChessBase"]
[SourceQuality "1"]
[TimeControl "7200"]

1. Nf3 {[%emt 0:00:28]} d5 {[%emt 0:08:27]} 2. d4 {[%emt 0:00:35]} c6 {[%emt 0:00:52]} 3. g3 {[%emt 0:00:16]} Bf5 {[%emt 0:01:13]} 4. Bg2 {[%emt 0:00:08]} e6 {[%emt 0:00:41]} 5. O-O {[%emt 0:00:21]} Nf6 {[%emt 0:00:42]} 6. c4 {[%emt 0:02:00]} Nbd7 {[%emt 0:03:29]} 7. b3 {[%emt 0:02:56]} Be7 {[%emt 0:00:47]} 8. Bb2 {[%emt 0:01:30]} O-O {[%emt 0:00:08]} 9. Nbd2 {[%emt 0:02:30]} Ne4 {[%emt 0:00:10]} 10. Ne1 {[%emt 0:15:09] LiveBook: 8 Games D11: Slav Defence: 3 Nf3 sidelines and 3...Nf6 4 e3 Bg4} (10. Nxe4 Bxe4 11. Nd2 Bxg2 12. Kxg2 Re8 13. Rc1 a5 14. a3 h6 15. e3 Bf6 16. b4 a4 17. e4 dxe4 18. Nxe4 Be7 {½-½ (32) Mecking,H (2606)-Cubas,J (2469) Florianopolis 2017}) 10... a5 {[%emt 0:30:00]} 11. Nd3 {[%emt 0:04:52]} Nxd2 {[%emt 0:02:37]} (11... a4 $5) 12. Qxd2 {[%emt 0:00:07]} dxc4 $146 {[%emt 0:00:33]} (12... Bf6 $11 {remains equal.}) ({Predecessor:} 12... Qb6 13. c5 Qb5 14. Rad1 b6 15. cxb6 Rfb8 16. Nc5 Nxc5 17. dxc5 Bxc5 {0-1 (101) Przezdziecka,M (2286)-Rajlich,I (2406) Chorzow 2013}) 13. bxc4 {[%emt 0:00:19]} a4 {[%emt 0:07:33]} 14. e4 {[%emt 0:04:46]} Bg6 {[%emt 0:00:04]} 15. Rac1 {[%emt 0:03:55]} a3 {[%emt 0:12:08]} 16. Ba1 {[%emt 0:00:59]} e5 {[%emt 0:04:07]} 17. d5 $14 {[%emt 0:03:09]} f6 {[%emt 0:00:17]} 18. f4 {[%emt 0:08:00]} Nc5 {[%emt 0:07:57]} 19. fxe5 {[%emt 0:21:13]} fxe5 {[%emt 0:00:08]} 20. Nxe5 {[%emt 0:02:38]} Bxe4 {[%emt 0:00:54]} 21. Rxf8+ {[%emt 0:01:28]} Bxf8 {[%emt 0:00:15]} 22. Bxe4 {[%emt 0:01:02]} Nxe4 {[%emt 0:00:06]} 23. Qf4 {[%emt 0:01:23]} Nf6 {[%emt 0:04:19]} 24. Ng4 {[%emt 0:04:18]} Qb6+ {[%emt 0:15:48]} 25. Kg2 {[%emt 0:05:00]} Nxg4 {[%emt 0:00:06]} 26. Qxg4 {[%emt 0:00:03]} cxd5 {[%emt 0:00:17]} 27. cxd5 {[%emt 0:01:04]} Qd6 {[%emt 0:00:11]} 28. Qf3 {[%emt 0:01:02]} Rd8 {[%emt 0:00:36]} 29. Rd1 {[%emt 0:00:25]} Qg6 {[%emt 0:00:45]} 30. Rd2 {[%emt 0:01:14]} Bc5 {[%emt 0:00:08]} 31. Be5 {[%emt 0:01:13]} Rf8 {[%emt 0:00:12]} 32. Bf4 {[%emt 0:00:40]} Bd6 {[%emt 0:00:11]} 33. Qd3 {[%emt 0:00:16]} Qxd3 {[%emt 0:01:57]} 34. Rxd3 {[%emt 0:00:05]} Bxf4 {[%emt 0:00:04]} 35. gxf4 {[%emt 0:00:10]} Ra8 {[%emt 0:00:11]} 36. Rb3 {[%emt 0:02:09]} Ra5 {[%emt 0:00:18]} 37. Kf3 {[%emt 0:00:16]} Rxd5 {[%emt 0:00:32]} 38. Rxa3 {[%emt 0:00:06]} Kf7 {[%emt 0:00:40]} 39. Rb3 {[%emt 0:00:38]} b5 {[%emt 0:00:19]} 40. Rb4 {[%emt 0:00:08]} Kg6 {[%emt 0:02:55]} 41. a4 {[%emt 0:00:44]} bxa4 {[%emt 0:00:04]} 42. Rxa4 {[%emt 0:00:02]} Rd3+ {[%emt 0:00:07]} 43. Kg4 {[%emt 0:00:52]} h5+ {[%emt 0:00:28]} 44. Kh4 {[%emt 0:00:05]} Rd2 {[%emt 0:01:15]} 45. h3 {[%emt 0:00:23]} Rd3 {[%emt 0:00:58]} 46. Ra5 {[%emt 0:00:19]} Rf3 {[%emt 0:00:21]} 47. Rg5+ {[%emt 0:00:32]} Kf6 {[%emt 0:00:04]} 48. Rxh5 {[%emt 0:00:16]} Rxf4+ {[%emt 0:00:03]} 49. Kg3 {[%emt 0:00:15]} 1/2-1/2

[Event "40th Eastman Open Ghent"]
[Site "Ghent"]
[Date "2017.07.18"]
[Round "8"]
[White "Sarrau, Jelle"]
[Black "Verhaeren, Gertjan"]
[Result "1-0"]
[ECO "E68"]
[WhiteElo "2363"]
[BlackElo "2067"]
[Annotator "ChessBase"]
[PlyCount "45"]
[EventDate "2017.??.??"]
[EventType "swiss"]
[EventCountry "BEL"]
[SourceTitle "playchess.com"]
[Source "ChessBase"]
[SourceQuality "1"]
[TimeControl "7200"]

1. Nf3 {[%emt 0:00:05]} Nf6 {[%emt 0:01:00]} 2. c4 {[%emt 0:00:12]} g6 {[%emt 0:00:05]} 3. Nc3 {[%emt 0:00:12]} Bg7 {[%emt 0:00:05]} 4. g3 {[%emt 0:01:17]} O-O {[%emt 0:00:07]} 5. Bg2 {[%emt 0:00:04]} d6 {[%emt 0:00:23]} 6. d4 {[%emt 0:00:10]} Nbd7 {[%emt 0:00:08]} 7. O-O {[%emt 0:00:08]} e5 {[%emt 0:00:14]} 8. e4 {[%emt 0:00:11]} c6 {[%emt 0:00:09]} 9. Re1 {[%emt 0:00:43]} Qb6 {[%emt 0:01:01]} 10. d5 {[%emt 0:05:06]} cxd5 {[%emt 0:02:34]} 11. cxd5 {[%emt 0:00:08]} Ng4 {[%emt 0:03:28]} 12. Qe2 {[%emt 0:03:02]} f5 {[%emt 0:00:27]} 13. h3 {[%emt 0:00:50]} Ngf6 {[%emt 0:00:10]} 14. Be3 {[%emt 0:01:01]} Qd8 {[%emt 0:02:39]} 15. Ng5 {[%emt 0:09:52]} Nc5 {[%emt 0:01:56]} 16. exf5 {[%emt 0:01:45]} Bxf5 {[%emt 0:00:52]} 17. g4 {[%emt 0:04:44]} Bd3 {[%emt 0:07:55]} 18. Qd2 {[%emt 0:00:51]} h6 {[%emt 0:00:39]} 19. Bxc5 {[%emt 0:06:52]} hxg5 {[%emt 0:00:17]} 20. Be3 {[%emt 0:00:32]} Ba6 {[%emt 0:00:18]} 21. Bxg5 {[%emt 0:00:10]} Qb6 {[%emt 0:00:23]} 22. Ne4 {[%emt 0:03:44]} Rac8 {[%emt 0:03:28]} 23. Be3 {[%emt 0:02:08]} 1-0

[Event "40th Eastman Open Ghent"]
[Site "Ghent"]
[Date "2017.07.18"]
[Round "8"]
[White "Cordts, Ingo"]
[Black "Abolianin, Arthur"]
[Result "1-0"]
[ECO "A04"]
[WhiteElo "2259"]
[BlackElo "2329"]
[Annotator "ChessBase"]
[PlyCount "37"]
[EventDate "2017.??.??"]
[EventType "swiss"]
[EventCountry "BEL"]
[SourceTitle "playchess.com"]
[Source "ChessBase"]
[SourceQuality "1"]
[TimeControl "7200"]

1. Nf3 {[%emt 0:00:03]} g6 {[%emt 0:00:06]} 2. d4 {[%emt 0:00:36]} Bg7 {[%emt 0:00:05]} 3. c4 {[%emt 0:00:06]} d6 {[%emt 0:00:10]} 4. Nc3 {[%emt 0:00:14]} c5 {[%emt 0:00:06]} 5. d5 {[%emt 0:01:33]} Bxc3+ {[%emt 0:00:04]} 6. bxc3 {[%emt 0:00:03]} f5 {[%emt 0:00:01]} 7. h4 {[%emt 0:01:41]} Nf6 {[%emt 0:00:18]} 8. h5 {[%emt 0:00:12]} Nxh5 {[%emt 0:04:38]} 9. Rxh5 {[%emt 0:00:08]} gxh5 {[%emt 0:00:02]} 10. e4 {[%emt 0:07:10]} fxe4 {[%emt 0:16:14]} 11. Ng5 {[%emt 0:01:36]} Bg4 {[%emt 0:00:03]} 12. Qc2 {[%emt 0:01:45]} h6 {[%emt 0:06:35]} 13. Nxe4 {[%emt 0:04:05]} Qa5 {[%emt 0:04:21]} 14. Nxd6+ {[%emt 0:07:33]} exd6 {[%emt 0:00:26]} 15. Qg6+ {[%emt 0:00:28]} Kd8 {[%emt 0:01:02]} 16. Qf6+ {[%emt 0:04:24]} Kc7 {[%emt 0:00:02]} 17. Qxh8 {[%emt 0:01:58]} Nd7 {[%emt 0:00:02]} 18. Qg7 {[%emt 0:00:42]} Rg8 {[%emt 0:00:01]} 19. f3 1-0

[Event "40th Eastman Open Ghent"]
[Site "Ghent"]
[Date "2017.07.19"]
[Round "9"]
[White "Michielsen, Joost"]
[Black "Van Mechelen, Jan"]
[Result "0-1"]
[ECO "B90"]
[WhiteElo "2409"]
[BlackElo "2247"]
[Annotator "ChessBase"]
[PlyCount "52"]
[EventDate "2017.??.??"]
[EventType "swiss"]
[EventCountry "BEL"]
[SourceTitle "playchess.com"]
[Source "ChessBase"]
[SourceQuality "1"]
[TimeControl "7200"]

1. e4 {[%emt 0:04:38]} c5 {[%emt 0:00:20]} 2. Nf3 {[%emt 0:00:05]} d6 {[%emt 0:00:08]} 3. d4 {[%emt 0:00:03]} cxd4 {[%emt 0:00:08]} 4. Nxd4 {[%emt 0:00:04]} Nf6 {[%emt 0:00:12]} 5. Nc3 {[%emt 0:00:04]} a6 {[%emt 0:00:08]} 6. h3 {[%emt 0:00:11]} e5 {[%emt 0:00:39]} 7. Nde2 {[%emt 0:00:04]} h5 {[%emt 0:00:25]} 8. Bg5 {[%emt 0:01:46]} Be7 {[%emt 0:00:49]} 9. Ng3 {[%emt 0:08:05]} g6 {[%emt 0:02:31]} 10. Bc4 {[%emt 0:02:32]} Nbd7 {[%emt 0:05:17]} 11. a4 {[%emt 0:05:30]} b6 {[%emt 0:01:16]} 12. Nd5 {[%emt 0:01:31]} Bb7 {[%emt 0:07:51]} 13. Nxe7 {[%emt 0:01:02]} Qxe7 {[%emt 0:00:09]} 14. O-O {[%emt 0:15:39]} h4 {[%emt 0:01:48]} 15. Ne2 {[%emt 0:00:19]} Rh5 {[%emt 0:00:29]} 16. Bxf6 {[%emt 0:02:01]} Nxf6 {[%emt 0:00:42]} 17. Nc3 {[%emt 0:00:06]} Nxe4 {[%emt 0:04:54]} 18. Nd5 {[%emt 0:01:26]} Qd8 {[%emt 0:00:11]} 19. Qf3 {[%emt 0:01:08]} f5 {[%emt 0:02:24]} 20. Qe3 {[%emt 0:01:44]} Rb8 {[%emt 0:08:35]} 21. Rad1 {[%emt 0:38:55]} Kf8 {[%emt 0:16:22]} 22. Nxb6 {[%emt 0:07:42]} f4 {[%emt 0:07:36]} 23. Qb3 {[%emt 0:00:59]} Nc5 {[%emt 0:01:00]} 24. Qb4 {[%emt 0:00:35]} f3 {[%emt 0:11:07]} 25. Rfe1 {[%emt 0:06:26]} a5 {[%emt 0:02:34]} 26. Nd7+ {[%emt 0:01:17]} Ke7 {[%emt 0:06:54]} 0-1

[Event "40th Eastman Open Ghent"]
[Site "Ghent"]
[Date "2017.07.19"]
[Round "9"]
[White "Van Beers, Eddy"]
[Black "De Jong, Jasper"]
[Result "1-0"]
[ECO "C06"]
[WhiteElo "2312"]
[BlackElo "2151"]
[Annotator "NA"]
[PlyCount "59"]
[EventDate "2017.??.??"]
[EventType "swiss"]
[EventCountry "BEL"]
[SourceTitle "playchess.com"]
[Source "ChessBase"]
[SourceQuality "1"]
[TimeControl "7200"]

1. e4 {[%emt 0:00:01]} e6 {[%emt 0:00:04]} 2. d4 {[%emt 0:00:04]} d5 {[%emt 0:00:03]} 3. Nd2 {[%emt 0:00:07]} Nf6 {[%emt 0:00:08]} 4. e5 {[%emt 0:00:09]} Nfd7 {[%emt 0:00:05]} 5. c3 {[%emt 0:00:09]} c5 {[%emt 0:00:05]} 6. Bd3 {[%emt 0:00:08]} Nc6 {[%emt 0:00:12]} 7. Ne2 {[%emt 0:00:06]} cxd4 {[%emt 0:01:17]} 8. cxd4 {[%emt 0:00:08]} f6 {[%emt 0:00:14]} 9. exf6 {[%emt 0:00:34]} Nxf6 {[%emt 0:01:22]} 10. Nf3 {[%emt 0:00:45]} Bd6 {[%emt 0:00:45]} 11. O-O {[%emt 0:00:09]} O-O {[%emt 0:00:59]} 12. Bf4 {[%emt 0:00:21]} Bxf4 {[%emt 0:05:18]} 13. Nxf4 {[%emt 0:00:15]} Qd6 {[%emt 0:00:15]} 14. g3 {[%emt 0:07:38]} e5 {[%emt 0:19:25]} 15. dxe5 {[%emt 0:00:48] C06: French Tarrasch: 3...Nf6 4 e5 Nfd7 5 Bd3 main lines} Nxe5 {[%emt 0:00:10]} 16. Nxe5 {[%emt 0:08:58]} Qxe5 {[%emt 0:00:07] LiveBook: 14 Games} 17. Qd2 {[%emt 0:12:47]} Ne4 $146 {[%emt 0:07:01]} ({Predecessor:} 17... Bg4 18. Rae1 Qd6 19. Bc4 Kh8 20. Qd4 Qb4 21. Nxd5 Rad8 22. Qxg4 Rxd5 {½-½ (71) Yu,R (2556)-Tran,T (2310) Ho Chi Minh City 2013}) 18. Qa5 {[%emt 0:26:53]} Bf5 {[%emt 0:26:41]} 19. Rad1 {[%emt 0:17:04]} Rad8 {[%emt 0:11:05]} 20. Bxe4 {[%emt 0:11:22]} ({Don't play} 20. Qxa7 $6 g5 $14) 20... Bxe4 {[%emt 0:01:28]} 21. f3 {[%emt 0:00:04]} ({Much worse is} 21. Qxa7 $6 g5 $11) 21... b6 $2 {[%emt 0:15:57]} (21... Bg6 $16) 22. Qe1 {[%emt 0:06:33]} g5 {[%emt 0:03:07]} 23. Ng2 {[%emt 0:01:26]} Qxb2 {[%emt 0:02:36]} 24. fxe4 {[%emt 0:00:49]} dxe4 {[%emt 0:01:47]} 25. Rxd8 {[%emt 0:01:35]} Rxd8 {[%emt 0:00:09]} 26. Qxe4 {[%emt 0:00:11]} Qxa2 {[%emt 0:01:27]} 27. Qe7 {[%emt 0:00:20]} Qd5 {[%emt 0:01:06]} 28. Ne3 {[%emt 0:00:25]} Qd4 {[%emt 0:00:46]} 29. Qxg5+ {[%emt 0:00:30]} Kh8 {[%emt 0:00:07]} 30. Rd1 $18 {[%emt 0:01:07]} (30. Qe7 $142 Rg8 31. Rf7) 1-0

[Event "40th Eastman Open Ghent"]
[Site "Ghent"]
[Date "2017.07.19"]
[Round "9"]
[White "Froeyman, Helmut"]
[Black "Goormachtigh, Johan"]
[Result "1/2-1/2"]
[ECO "B47"]
[WhiteElo "2264"]
[BlackElo "2156"]
[Annotator "ChessBase"]
[PlyCount "38"]
[EventDate "2017.??.??"]
[EventType "swiss"]
[EventCountry "BEL"]
[SourceTitle "playchess.com"]
[Source "ChessBase"]
[SourceQuality "1"]
[TimeControl "7200"]

1. e4 {[%emt 0:00:03]} c5 {[%emt 0:00:19]} 2. Nf3 {[%emt 0:00:04]} e6 {[%emt 0:00:27]} 3. d4 {[%emt 0:00:05]} cxd4 {[%emt 0:00:04]} 4. Nxd4 {[%emt 0:00:04]} Nc6 {[%emt 0:00:06]} 5. Nc3 {[%emt 0:00:03]} Qc7 {[%emt 0:00:20]} 6. Be2 {[%emt 0:00:06]} a6 {[%emt 0:00:16]} 7. O-O {[%emt 0:00:07]} Nf6 {[%emt 0:00:21]} 8. Be3 {[%emt 0:00:07]} Bb4 {[%emt 0:00:20]} 9. Na4 {[%emt 0:00:49]} Be7 {[%emt 0:00:08]} 10. Nxc6 {[%emt 0:01:13]} bxc6 {[%emt 0:00:07]} 11. Bd3 {[%emt 0:00:26]} c5 {[%emt 0:02:11]} 12. c4 {[%emt 0:01:28]} Bb7 {[%emt 0:01:02]} 13. Nc3 {[%emt 0:01:02]} d6 {[%emt 0:02:48]} 14. f4 {[%emt 0:02:04]} O-O {[%emt 0:12:46]} 15. Qf3 {[%emt 0:00:29]} Rfe8 {[%emt 0:10:28]} 16. Qh3 {[%emt 0:14:28]} Nd7 {[%emt 0:01:47]} 17. Rae1 {[%emt 0:04:02]} Nf8 {[%emt 0:07:46]} 18. Bd2 {[%emt 0:14:40]} Bf6 {[%emt 0:05:57]} 19. Re2 {[%emt 0:07:28]} Ng6 {[%emt 0:02:27]} 1/2-1/2